fUSD/lending_fUSD_20240301
["ID","MTS","AMOUNT","RATE_DAILY","PERIOD"]
[315968687,1709307041041,-619.92,0.00021917,2]
[315968689,1709307041050,-500.0,0.00021917,2]
[315968691,1709307041059,-513.88,0.00021917,2]
[315968693,1709307041069,-500.0,0.00021917,2]
[315968695,1709307041078,-1001.49,0.00021917,2]
[315968697,1709307041087,-500.0,0.00021917,2]
[315968699,1709307041096,-500.0,0.00021917,2]
[315968701,1709307041106,-669.59,0.00021917,2]
[315968703,1709307041115,-500.0,0.00021917,2]
[315968705,1709307041124,-500.0,0.00021917,2]
[315968707,1709307041133,-500.0,0.00021917,2]
[315968709,1709307041142,-849.76,0.00021917,2]
[315968711,1709307041151,-500.0,0.00021917,2]
[315968712,1709307041160,-500.0,0.00021917,2]
[315968713,1709307041169,-500.0,0.00021917,2]
[315968714,1709307041178,-500.0,0.00021917,2]
[315968715,1709307041192,-500.0,0.00021917,2]
[315968716,1709307041201,-500.0,0.00021917,2]
[315968717,1709307041210,-500.0,0.00021917,2]
[315968718,1709307041219,-593.47,0.00021917,2]
[315968719,1709307041229,-500.0,0.00021917,2]
[315968720,1709307041239,-500.0,0.00021917,2]
[315968722,1709307041248,-500.0,0.00021917,2]
[315968724,1709307041257,-587.57,0.00021917,2]
[315968726,1709307041266,-693.02,0.00021917,2]
[315968728,1709307041275,-500.0,0.00021917,2]
[315968730,1709307041285,-500.0,0.00021917,2]
[315968732,1709307041295,-3436.84,0.00021917,2]
[315968734,1709307041304,-512.71,0.00021917,2]
[315968736,1709307041314,-500.0,0.00021917,2]
[315968738,1709307041323,-500.0,0.00021917,2]
[315968741,1709307041333,-500.0,0.00021917,2]
[315968743,1709307041346,-500.0,0.00021917,2]
[315968745,1709307041356,-500.0,0.00021917,2]
[315968747,1709307041366,-1841.21,0.00021917,2]
[315968749,1709307041375,-500.0,0.00021917,2]
[315968751,1709307041386,-500.0,0.00021917,2]
[315968753,1709307041397,-661.84,0.00021917,2]
[315968755,1709307041407,-500.0,0.00021917,2]
[315968757,1709307041417,-500.0,0.00021917,2]
[315968759,1709307041427,-4114.03,0.00021917,2]
[315968761,1709307041438,-500.0,0.00021917,2]
[315968763,1709307041447,-3002.58,0.00021917,2]
[315968765,1709307041457,-500.0,0.00021917,2]
[315968767,1709307041467,-500.0,0.00021917,2]
[315968769,1709307041478,-393.31,0.00021917,2]
[315968772,1709307041488,-561.160512,0.00021917,2]
[315968774,1709307041497,-500.0,0.00021917,2]
[315968776,1709307041507,-500.0,0.00021917,2]
[315968778,1709307041517,-500.0,0.00021917,2]
[315968780,1709307041526,-500.0,0.00021917,2]
[315968782,1709307041536,-500.0,0.00021917,2]
[315968784,1709307041546,-974.29,0.00021917,2]
[315968786,1709307041556,-2153.01,0.00021917,2]
[315968788,1709307041566,-545.38,0.00021917,2]
[315968790,1709307041575,-570.29,0.00021917,2]
[315968792,1709307041586,-759.19,0.00021917,2]
[315968794,1709307041595,-500.0,0.00021917,2]
[315968796,1709307041605,-500.0,0.00021917,2]
[315968798,1709307041614,-1340.74,0.00021917,2]
[315968801,1709307041624,-500.0,0.00021917,2]
[315968803,1709307041634,-3434.32,0.00021917,2]
[315968805,1709307041643,-500.0,0.00021917,2]
[315968807,1709307041653,-604.73,0.00021917,2]
[315968809,1709307041663,-500.0,0.00021917,2]
[315968811,1709307041672,-3111.84,0.00021917,2]
[315968813,1709307041683,-1366.55,0.00021917,2]
[315968815,1709307041693,-500.0,0.00021917,2]
[315968817,1709307041705,-500.0,0.00021917,2]
[315968819,1709307041715,-897.17,0.00021917,2]
[315968821,1709307041726,-2375.12,0.00021917,2]
[315968823,1709307041737,-500.0,0.00021917,2]
[315968825,1709307041746,-12991.98,0.00021917,2]
[315968827,1709307041756,-500.0,0.00021917,2]
[315968829,1709307041766,-500.0,0.00021917,2]
[315968831,1709307041775,-541.73,0.00021917,2]
[315968833,1709307041786,-500.0,0.00021917,2]
[315968836,1709307041795,-1092.99,0.00021917,2]
[315968838,1709307041805,-614.69,0.00021917,2]
[315968840,1709307041815,-732.01,0.00021917,2]
[315968842,1709307041824,-731.06,0.00021917,2]
[315968844,1709307041834,-819.26,0.00021917,2]
[315968846,1709307041843,-500.0,0.00021917,2]
[315968848,1709307041853,-500.0,0.00021917,2]
[315968850,1709307041862,-500.0,0.00021917,2]
[315968852,1709307041872,-658.19,0.00021917,2]
[315968854,1709307041882,-500.0,0.00021917,2]
[315968856,1709307041892,-500.0,0.00021917,2]
[315968858,1709307041901,-691.87,0.00021917,2]
[315968860,1709307041910,-638.67,0.00021917,2]
[315968862,1709307041921,-1111.59,0.00021917,2]
[315968864,1709307041930,-3372.23,0.00021917,2]
[315968866,1709307041940,-815.45,0.00021917,2]
[315968868,1709307041951,-500.0,0.00021917,2]
[315968871,1709307041962,-500.0,0.00021917,2]
[315968873,1709307041972,-964.26,0.00021917,2]
[315968875,1709307041986,-793.53,0.00021917,2]
[315968877,1709307041996,-500.0,0.00021917,2]
[315968879,1709307042006,-516.84,0.00021917,2]
[315968881,1709307042016,-500.0,0.00021917,2]
[315968883,1709307042026,-751.41,0.00021917,2]
[315968885,1709307042036,-500.0,0.00021917,2]
[315968887,1709307042046,-500.0,0.00021917,2]
[315968889,1709307042055,-500.0,0.00021917,2]
[315968891,1709307042065,-611.43,0.00021917,2]
[315968893,1709307042074,-500.0,0.00021917,2]
[315968895,1709307042084,-500.0,0.00021917,2]
[315968897,1709307042093,-500.0,0.00021917,2]
[315968899,1709307042103,-500.0,0.00021917,2]
[315968901,1709307042113,-500.0,0.00021917,2]
[315968903,1709307042122,-552.7,0.00021917,2]
[315968905,1709307042132,-500.0,0.00021917,2]
[315968907,1709307042142,-698.82,0.00021917,2]
[315968909,1709307042152,-500.0,0.00021917,2]
[315968911,1709307042162,-573.69,0.00021917,2]
[315968913,1709307042172,-583.21,0.00021917,2]
[315968915,1709307042181,-1028.87,0.00021917,2]
[315968917,1709307042191,-500.0,0.00021917,2]
[315968920,1709307042201,-500.0,0.00021917,2]
[315968922,1709307042214,-500.0,0.00021917,2]
[315968923,1709307042223,-500.0,0.00021917,2]
[315968926,1709307042236,-575.16,0.00021917,2]
[315968928,1709307042245,-500.0,0.00021917,2]
[315968930,1709307042255,-787.69,0.00021917,2]
[315968932,1709307042265,-918.67,0.00021917,2]
[315968934,1709307042274,-500.0,0.00021917,2]
[315968936,1709307042284,-691.1,0.00021917,2]
[315968938,1709307042293,-3244.85,0.00021917,2]
[315968940,1709307042303,-536.66,0.00021917,2]
[315968942,1709307042312,-1967.56,0.00021917,2]
[315968944,1709307042322,-670.06,0.00021917,2]
[315968946,1709307042331,-500.0,0.00021917,2]
[315968948,1709307042341,-505.35,0.00021917,2]
[315968950,1709307042350,-500.0,0.00021917,2]
[315968952,1709307042360,-500.0,0.00021917,2]
[315968954,1709307042369,-509.48,0.00021917,2]
[315968956,1709307042379,-685.16,0.00021917,2]
[315968959,1709307042389,-649.97,0.00021917,2]
[315968962,1709307042399,-500.0,0.00021917,2]
[315968965,1709307042408,-982.63,0.00021917,2]
[315968968,1709307042418,-3216.78,0.00021917,2]
[315968971,1709307042426,-500.0,0.00021917,2]
[315968974,1709307042435,-500.0,0.00021917,2]
[315968977,1709307042444,-500.0,0.00021917,2]
[315968979,1709307042454,-849.21,0.00021917,2]
[315968981,1709307042463,-500.0,0.00021917,2]
[315968983,1709307042473,-972.94,0.00021917,2]
[315968985,1709307042485,-500.0,0.00021917,2]
[315968987,1709307042495,-500.0,0.00021917,2]
[315968989,1709307042504,-3340.41,0.00021917,2]
[315968991,1709307042514,-500.0,0.00021917,2]
[315968994,1709307042524,-3128.28,0.00021917,2]
[315968997,1709307042533,-500.0,0.00021917,2]
[315968999,1709307042543,-500.0,0.00021917,2]
[315969001,1709307042552,-500.0,0.00021917,2]
[315969003,1709307042561,-1319.78,0.00021917,2]
[315969005,1709307042571,-3858.03,0.00021917,2]
[315969007,1709307042580,-457.07942024,0.00021917,2]
[315969009,1709307042589,-500.0,0.00021917,2]
[315969011,1709307042598,-500.0,0.00021917,2]
[315969013,1709307042608,-949.85,0.00021917,2]
[315969015,1709307042617,-500.0,0.00021917,2]
[315969017,1709307042626,-500.0,0.00021917,2]
[315969019,1709307042635,-525.34,0.00021917,2]
[315969021,1709307042645,-500.0,0.00021917,2]
[315969023,1709307042655,-500.0,0.00021917,2]
[315969025,1709307042664,-763.27,0.00021917,2]
[315969027,1709307042674,-4141.17,0.00021917,2]
[315969029,1709307042687,-2899.72,0.00021917,2]
[315969031,1709307042696,-936.13,0.00021917,2]
[315969033,1709307042706,-1154.5,0.00021917,2]
[315969035,1709307042715,-500.0,0.00021917,2]
[315969037,1709307042728,-676.85,0.00021917,2]
[315969039,1709307042737,-500.0,0.00021917,2]
[315969041,1709307042747,-500.0,0.00021917,2]
[315969043,1709307042757,-988.63,0.00021917,2]
[315969045,1709307042767,-500.0,0.00021917,2]
[315969047,1709307042777,-500.0,0.00021917,2]
[315969049,1709307042787,-2096.13,0.00021917,2]
[315969051,1709307042796,-788.2,0.00021917,2]
[315969053,1709307042805,-500.0,0.00021917,2]
[315969055,1709307042814,-3085.65,0.00021917,2]
[315969057,1709307042823,-2568.42,0.00021917,2]
[315969059,1709307042832,-500.0,0.00021917,2]
[315969061,1709307042842,-500.0,0.00021917,2]
[315969063,1709307042852,-784.04,0.00021917,2]
[315969065,1709307042862,-974.28,0.00021917,2]
[315969067,1709307042871,-157.51,0.00021918,2]
[315969069,1709307042880,-200.39,0.00021918,2]
[315969071,1709307042889,-941.45,0.00021918,2]
[315969073,1709307042898,-1038.0,0.00021921,2]
[315969075,1709307042907,-177.0,0.00021921,2]
[315969078,1709307042917,-352.0,0.00021921,2]
[315969079,1709307042927,-1545.4157,0.00021927,2]
[315969081,1709307042938,-203.0,0.00021978,7]
[315969083,1709307042949,-500.0,0.00021999,2]
[315969085,1709307042958,-500.0,0.00021999,2]
[315969087,1709307042968,-500.0,0.00021999,2]
[315969089,1709307042979,-500.0,0.00021999,2]
[315969091,1709307042988,-500.0,0.00021999,2]
[315969094,1709307042997,-500.0,0.00021999,2]
[315969095,1709307043007,-500.0,0.00021999,2]
[315969097,1709307043016,-500.0,0.00021999,2]
[315969100,1709307043026,-296.5290492,0.00021999,2]
[315969102,1709307043035,-523.57640165,0.00021999,2]
[315969104,1709307043045,-500.0,0.00021999,2]
[315969106,1709307043054,-500.0,0.00021999,2]
[315969108,1709307043064,-287.66935519,0.00021999,2]
[315969111,1709307043073,-500.0,0.00021999,2]
[315969113,1709307043082,-500.0,0.00021999,2]
[315969116,1709307043091,-588.3858646,0.00021999,2]
[315969120,1709307043100,-500.0,0.00021999,2]
[315969122,1709307043110,-622.36236475,0.00021999,2]
[315969124,1709307043119,-500.0,0.00021999,2]
[315969126,1709307043128,-376.30328025,0.00021999,2]
[315969128,1709307043138,-500.0,0.00021999,2]
[315969130,1709307043147,-500.0,0.00021999,2]
[315969132,1709307043156,-500.0,0.00021999,2]
[315969134,1709307043166,-500.0,0.00021999,2]
[315969136,1709307043175,-500.0,0.00021999,2]
[315969138,1709307043185,-500.0,0.00021999,2]
[315969140,1709307043194,-500.0,0.00021999,2]
[315969142,1709307043203,-500.0,0.00021999,2]
[315969144,1709307043212,-640.30010717,0.00021999,2]
[315969146,1709307043221,-500.0,0.00021999,2]
[315969148,1709307043233,-635.51034236,0.00021999,2]
[315969150,1709307043242,-500.0,0.00021999,2]
[315969152,1709307043251,-281.35,0.00021999,2]
[315969154,1709307043260,-500.0,0.00021999,2]
[315969156,1709307043269,-500.0,0.00021999,2]
[315969158,1709307043278,-584.02923638,0.00021999,2]
[315969160,1709307043287,-500.0,0.00021999,2]
[315969162,1709307043299,-500.0,0.00021999,2]
[315969164,1709307043308,-500.0,0.00021999,2]
[315969166,1709307043317,-500.0,0.00021999,2]
[315969168,1709307043326,-500.0,0.00021999,2]
[315969170,1709307043336,-500.0,0.00021999,2]
[315969172,1709307043345,-500.0,0.00021999,2]
[315969175,1709307043354,-500.0,0.00021999,2]
[315969176,1709307043363,-500.0,0.00021999,2]
[315969178,1709307043373,-500.0,0.00021999,2]
[315969181,1709307043382,-500.0,0.00021999,2]
[315969183,1709307043391,-500.0,0.00021999,2]
[315969185,1709307043400,-500.0,0.00021999,2]
[315969187,1709307043409,-500.0,0.00021999,2]
[315969189,1709307043418,-500.0,0.00021999,2]
[315969190,1709307043427,-500.0,0.00021999,2]
[315969192,1709307043436,-500.0,0.00021999,2]
[315969195,1709307043445,-500.0,0.00021999,2]
[315969196,1709307043455,-500.0,0.00021999,2]
[315969198,1709307043464,-500.0,0.00021999,2]
[315969200,1709307043473,-500.0,0.00021999,2]
[315969203,1709307043484,-511.49428272,0.00021999,2]
[315969205,1709307043494,-500.0,0.00021999,2]
[315969207,1709307043503,-500.0,0.00021999,2]
[315969208,1709307043512,-500.0,0.00021999,2]
[315969211,1709307043522,-500.0,0.00021999,2]
[315969213,1709307043532,-500.0,0.00021999,2]
[315969214,1709307043541,-500.0,0.00021999,2]
[315969215,1709307043550,-500.0,0.00021999,2]
[315969216,1709307043560,-500.0,0.00021999,2]
[315969217,1709307043569,-500.0,0.00021999,2]
[315969218,1709307043578,-500.0,0.00021999,2]
[315969219,1709307043588,-521.68,0.00021999,2]
[315969220,1709307043597,-500.0,0.00021999,2]
[315969221,1709307043606,-500.0,0.00021999,2]
[315969223,1709307043616,-500.0,0.00021999,2]
[315969225,1709307043625,-500.0,0.00021999,2]
[315969227,1709307043634,-500.0,0.00021999,2]
[315969229,1709307043643,-500.0,0.00021999,2]
[315969231,1709307043652,-528.94,0.00021999,2]
[315969233,1709307043662,-500.0,0.00021999,2]
[315969235,1709307043673,-767.41,0.00021999,2]
[315969237,1709307043684,-500.0,0.00021999,2]
[315969240,1709307043698,-643.33,0.00021999,2]
[315969242,1709307043714,-500.0,0.00021999,2]
[315969245,1709307043728,-500.0,0.00021999,2]
[315969247,1709307043741,-500.0,0.00021999,2]
[315969249,1709307043753,-779.62,0.00021999,2]
[315969251,1709307043763,-542.60854535,0.00021999,2]
[315969254,1709307043774,-699.42,0.00021999,2]
[315969256,1709307043788,-646.48911709,0.00021999,2]
[315969258,1709307043799,-500.0,0.00021999,2]
[315969260,1709307043811,-500.0,0.00021999,2]
[315969263,1709307043824,-512.87300635,0.00021999,2]
[315969265,1709307043836,-189.63507285,0.00021999,2]
[315969267,1709307043848,-500.0,0.00021999,2]
[315969270,1709307043859,-1154.34,0.00021999,2]
[315969272,1709307043871,-365.17,0.00021999,2]
[315969274,1709307043883,-518.73,0.00021999,2]
[315969276,1709307043892,-1517.01,0.00021999,2]
[315969278,1709307043903,-500.0,0.00021999,2]
[315969281,1709307043915,-500.0,0.00021999,2]
[315969283,1709307043927,-1293.16,0.00021999,2]
[315969285,1709307043938,-518.79,0.00021999,2]
[315969288,1709307043950,-500.0,0.00021999,2]
[315969290,1709307043962,-500.0,0.00021999,2]
[315969292,1709307043974,-776.93,0.00021999,2]
[315969295,1709307043988,-1111.31,0.00021999,2]
[315969297,1709307044000,-500.0,0.00021999,2]
[315969299,1709307044011,-500.0,0.00021999,2]
[315969301,1709307044021,-512.52,0.00021999,2]
[315969303,1709307044031,-500.0,0.00021999,2]
[315969306,1709307044043,-500.0,0.00021999,2]
[315969308,1709307044056,-566.57,0.00021999,2]
[315969311,1709307044067,-500.0,0.00021999,2]
[315969313,1709307044080,-500.0,0.00021999,2]
[315969315,1709307044093,-561.8,0.00021999,2]
[315969318,1709307044104,-500.0,0.00021999,2]
[315969320,1709307044116,-500.0,0.00021999,2]
[315969322,1709307044126,-506.98,0.00021999,2]
[315969324,1709307044138,-500.0,0.00021999,2]
[315969326,1709307044149,-729.73,0.00021999,2]
[315969329,1709307044161,-1477.08,0.00021999,2]
[315969331,1709307044173,-150.0,0.00022,2]
[315969333,1709307044185,-150.0,0.00022,2]
[315969336,1709307044197,-181.18260781,0.00022,2]
[315969338,1709307044209,-159.58496592,0.00022,2]
[315969340,1709307044221,-235243.75,0.00022,2]
[315969343,1709307044234,-104125.0806975,0.00022025,2]
[315969345,1709307044247,-122552.63519134,0.00022027,4]
[315969347,1709307044257,-500.0,0.00022027,2]
[315969349,1709307044267,-500.0,0.00022027,2]
[315969351,1709307044278,-500.0,0.00022027,2]
[315969353,1709307044288,-500.0,0.00022027,2]
[315969356,1709307044299,-500.0,0.00022027,2]
[315969358,1709307044311,-500.0,0.00022027,2]
[315969360,1709307044323,-500.0,0.00022027,2]
[315969362,1709307044334,-500.0,0.00022027,2]
[315969365,1709307044345,-500.0,0.00022027,2]
[315969367,1709307044356,-500.0,0.00022027,2]
[315969369,1709307044368,-500.0,0.00022027,2]
[315969371,1709307044379,-500.0,0.00022027,2]
[315969373,1709307044389,-500.0,0.00022027,2]
[315969376,1709307044399,-500.0,0.00022027,2]
[315969378,1709307044409,-500.0,0.00022027,2]
[315969380,1709307044419,-500.0,0.00022027,2]
[315969382,1709307044430,-500.0,0.00022027,2]
[315969384,1709307044440,-570.48466043,0.00022027,2]
[315969386,1709307044450,-500.0,0.00022027,2]
[315969388,1709307044461,-500.0,0.00022027,2]
[315969390,1709307044472,-500.0,0.00022027,2]
[315969393,1709307044484,-500.0,0.00022027,2]
[315969395,1709307044495,-500.0,0.00022027,2]
[315969397,1709307044506,-500.0,0.00022027,2]
[315969399,1709307044517,-500.0,0.00022027,2]
[315969401,1709307044528,-500.0,0.00022027,2]
[315969404,1709307044538,-500.0,0.00022027,2]
[315969406,1709307044549,-500.0,0.00022027,2]
[315969408,1709307044560,-500.0,0.00022027,2]
[315969410,1709307044570,-500.0,0.00022027,2]
[315969412,1709307044581,-500.0,0.00022027,2]
[315969414,1709307044592,-500.0,0.00022027,2]
[315969417,1709307044602,-500.0,0.00022027,2]
[315969419,1709307044613,-500.0,0.00022027,2]
[315969421,1709307044624,-500.0,0.00022027,2]
[315969423,1709307044635,-500.0,0.00022027,2]
[315969425,1709307044646,-500.0,0.00022027,2]
[315969428,1709307044661,-500.0,0.00022027,2]
[315969430,1709307044671,-500.0,0.00022027,2]
[315969432,1709307044683,-500.0,0.00022027,2]
[315969434,1709307044696,-500.0,0.00022027,2]
[315969436,1709307044707,-500.0,0.00022027,2]
[315969439,1709307044718,-500.0,0.00022027,2]
[315969441,1709307044730,-500.0,0.00022027,2]
[315969443,1709307044741,-500.0,0.00022027,2]
[315969445,1709307044751,-500.0,0.00022027,2]
[315969447,1709307044762,-500.0,0.00022027,2]
[315969449,1709307044773,-500.0,0.00022027,2]
[315969452,1709307044784,-500.0,0.00022027,2]
[315969454,1709307044795,-500.0,0.00022027,2]
[315969456,1709307044806,-641.48,0.00022027,2]
[315969458,1709307044816,-500.0,0.00022027,2]
[315969460,1709307044827,-500.0,0.00022027,2]
[315969462,1709307044838,-159.41,0.00022027,2]
[315969465,1709307044849,-733.34,0.00022027,2]
[315969467,1709307044859,-500.0,0.00022027,2]
[315969469,1709307044870,-500.0,0.00022027,2]
[315969471,1709307044881,-500.0,0.00022027,2]
[315969473,1709307044892,-500.0,0.00022027,2]
[315969476,1709307044903,-708.41,0.00022027,2]
[315969478,1709307044914,-500.0,0.00022027,2]
[315969480,1709307044924,-500.0,0.00022027,2]
[315969482,1709307044936,-500.0,0.00022027,2]
[315969484,1709307044947,-681.36,0.00022027,2]
[315969487,1709307044958,-500.0,0.00022027,2]
[315969489,1709307044968,-500.0,0.00022027,2]
[315969491,1709307044980,-500.0,0.00022027,2]
[315969493,1709307044991,-500.0,0.00022027,2]
[315969495,1709307045002,-500.0,0.00022027,2]
[315969497,1709307045013,-514.15,0.00022027,2]
[315969500,1709307045023,-500.0,0.00022027,2]
[315969502,1709307045034,-500.0,0.00022027,2]
[315969504,1709307045044,-500.0,0.00022027,2]
[315969506,1709307045055,-442.69,0.00022027,2]
[315969508,1709307045065,-500.0,0.00022027,2]
[315969510,1709307045075,-500.0,0.00022027,2]
[315969512,1709307045086,-500.0,0.00022027,2]
[315969515,1709307045097,-500.0,0.00022027,2]
[315969517,1709307045108,-780.87,0.00022027,2]
[315969519,1709307045118,-500.0,0.00022027,2]
[315969521,1709307045129,-500.0,0.00022027,2]
[315969523,1709307045139,-619.92,0.00022027,2]
[315969525,1709307045150,-500.0,0.00022027,2]
[315969527,1709307045161,-513.88,0.00022027,2]
[315969530,1709307045172,-500.0,0.00022027,2]
[315969532,1709307045183,-1001.49,0.00022027,2]
[315969534,1709307045195,-500.0,0.00022027,2]
[315969536,1709307045206,-500.0,0.00022027,2]
[315969538,1709307045217,-669.59,0.00022027,2]
[315969540,1709307045228,-500.0,0.00022027,2]
[315969543,1709307045241,-500.0,0.00022027,2]
[315969545,1709307045251,-500.0,0.00022027,2]
[315969547,1709307045262,-849.76,0.00022027,2]
[315969549,1709307045272,-500.0,0.00022027,2]
[315969551,1709307045282,-500.0,0.00022027,2]
[315969554,1709307045294,-500.0,0.00022027,2]
[315969556,1709307045304,-277.8955215,0.00022027,2]
[315969558,1709307045315,-448.9308426,0.00022027,2]
[315969561,1709307045326,-500.0,0.00022027,2]
[315969564,1709307045336,-593.47,0.00022027,2]
[315969566,1709307045346,-500.0,0.00022027,2]
[315969569,1709307045356,-572.05377497,0.00022027,2]
[315969572,1709307045367,-500.0,0.00022027,2]
[315969575,1709307045377,-587.57,0.00022027,2]
[315969577,1709307045388,-693.02,0.00022027,2]
[315969580,1709307045398,-500.0,0.00022027,2]
[315969582,1709307045408,-500.0,0.00022027,2]
[315969585,1709307045418,-3436.84,0.00022027,2]
[315969587,1709307045430,-512.71,0.00022027,2]
[315969589,1709307045440,-500.0,0.00022027,2]
[315969591,1709307045450,-500.0,0.00022027,2]
[315969593,1709307045460,-500.0,0.00022027,2]
[315969595,1709307045471,-500.0,0.00022027,2]
[315969597,1709307045482,-500.0,0.00022027,2]
[315969600,1709307045492,-1841.21,0.00022027,2]
[315969602,1709307045503,-500.0,0.00022027,2]
[315969604,1709307045513,-661.84,0.00022027,2]
[315969606,1709307045523,-500.0,0.00022027,2]
[315969608,1709307045533,-4114.03,0.00022027,2]
[315969610,1709307045543,-500.0,0.00022027,2]
[315969612,1709307045554,-500.0,0.00022027,2]
[315969615,1709307045564,-255.85071022,0.00022027,2]
[315969617,1709307045575,-500.0,0.00022027,2]
[315969619,1709307045586,-3002.58,0.00022027,2]
[315969621,1709307045596,-500.0,0.00022027,2]
[315969623,1709307045606,-500.0,0.00022027,2]
[315969626,1709307045617,-500.0,0.00022027,2]
[315969628,1709307045627,-500.0,0.00022027,2]
[315969630,1709307045638,-500.0,0.00022027,2]
[315969632,1709307045648,-974.29,0.00022027,2]
[315969634,1709307045659,-2153.01,0.00022027,2]
[315969636,1709307045669,-545.38,0.00022027,2]
[315969638,1709307045680,-570.29,0.00022027,2]
[315969641,1709307045695,-759.19,0.00022027,2]
[315969642,1709307045706,-500.0,0.00022027,2]
[315969643,1709307045716,-500.0,0.00022027,2]
[315969644,1709307045727,-1340.74,0.00022027,2]
[315969645,1709307045738,-500.0,0.00022027,2]
[315969646,1709307045748,-3434.32,0.00022027,2]
[315969647,1709307045759,-500.0,0.00022027,2]
[315969648,1709307045770,-604.73,0.00022027,2]
[315969650,1709307045782,-500.0,0.00022027,2]
[315969652,1709307045793,-3111.84,0.00022027,2]
[315969654,1709307045804,-1366.55,0.00022027,2]
[315969656,1709307045814,-500.0,0.00022027,2]
[315969659,1709307045824,-500.0,0.00022027,2]
[315969661,1709307045835,-897.17,0.00022027,2]
[315969663,1709307045845,-2375.12,0.00022027,2]
[315969665,1709307045856,-500.0,0.00022027,2]
[315969667,1709307045866,-12991.98,0.00022027,2]
[315969669,1709307045877,-500.0,0.00022027,2]
[315969671,1709307045888,-500.0,0.00022027,2]
[315969673,1709307045899,-541.73,0.00022027,2]
[315969676,1709307045910,-500.0,0.00022027,2]
[315969678,1709307045921,-1092.99,0.00022027,2]
[315969680,1709307045931,-614.69,0.00022027,2]
[315969682,1709307045941,-732.01,0.00022027,2]
[315969684,1709307045952,-647.88788454,0.00022027,2]
[315969693,1709307046793,-83.17211546,0.00022027,2]
[315969694,1709307046803,-819.26,0.00022027,2]
[315969695,1709307046813,-500.0,0.00022027,2]
[315969696,1709307046822,-500.0,0.00022027,2]
[315969697,1709307046832,-500.0,0.00022027,2]
[315969698,1709307046842,-658.19,0.00022027,2]
[315969699,1709307046852,-500.0,0.00022027,2]
[315969700,1709307046861,-500.0,0.00022027,2]
[315969701,1709307046870,-691.87,0.00022027,2]
[315969702,1709307046879,-638.67,0.00022027,2]
[315969703,1709307046889,-1111.59,0.00022027,2]
[315969704,1709307046899,-3372.23,0.00022027,2]
[315969705,1709307046908,-815.45,0.00022027,2]
[315969706,1709307046917,-500.0,0.00022027,2]
[315969707,1709307046926,-500.0,0.00022027,2]
[315969708,1709307046936,-964.26,0.00022027,2]
[315969709,1709307046945,-793.53,0.00022027,2]
[315969710,1709307046954,-500.0,0.00022027,2]
[315969711,1709307046963,-516.84,0.00022027,2]
[315969712,1709307046973,-500.0,0.00022027,2]
[315969713,1709307046983,-751.41,0.00022027,2]